lending/lending_fUSD_20251018
["ID","MTS","AMOUNT","RATE_DAILY","PERIOD"]
[391757561,1760784638574,-200.0,0.0003239,30]
[391757563,1760784638584,-204.2928508,0.0003239,30]
[391757565,1760784638593,-187.16936679,0.0003239,2]
[391757567,1760784638602,-150.14,0.0003239,2]
[391757569,1760784638611,-150.14,0.0003239,2]
[391757571,1760784638620,-150.14,0.0003239,2]
[391757573,1760784638629,-150.14,0.0003239,2]
[391757575,1760784638639,-150.14,0.0003239,2]
[391757576,1760784638649,-150.14,0.0003239,2]
[391757579,1760784638659,-150.14,0.0003239,2]
[391757581,1760784638669,-150.14,0.0003239,2]
[391757582,1760784638678,-150.14,0.0003239,2]
[391757585,1760784638688,-150.14,0.0003239,2]
[391757587,1760784638697,-150.14,0.0003239,2]
[391757589,1760784638707,-150.14,0.0003239,2]
[391757590,1760784638716,-150.14,0.0003239,2]
[391757592,1760784638725,-150.14,0.0003239,2]
[391757595,1760784638734,-150.14,0.0003239,2]
[391757596,1760784638744,-150.14,0.0003239,2]
[391757598,1760784638753,-37422.11419691,0.0003239,2]
[391757601,1760784638763,-2185.7943342,0.00032391,2]
[391757603,1760784638773,-1473.10369812,0.00032392,2]
[391757604,1760784638783,-300.0,0.00032399,10]
[391757607,1760784638792,-300.0,0.00032399,10]
[391757608,1760784638803,-300.0,0.00032399,10]
[391757610,1760784638812,-387.85351644,0.00032399,10]
[391757612,1760784638822,-300.0,0.00032399,10]
[391757614,1760784638831,-300.0,0.00032399,10]
[391757616,1760784638840,-300.0,0.00032399,10]
[391757618,1760784638849,-678.97529106,0.00032399,10]
[391757619,1760784638859,-349.66345052,0.00032399,15]
[391757621,1760784638868,-657.92929977,0.00032399,15]
[391757623,1760784638877,-442.48878763,0.00032399,15]
[391757625,1760784638887,-150.0,0.00032399,2]
[391757627,1760784638896,-150.0,0.00032399,20]
[391757628,1760784638905,-999.0,0.00032399,120]
[391757630,1760784638914,-1286.0,0.000324,5]
[391757632,1760784638923,-5695.47274508,0.000324,4]
[391757636,1760784638965,-6926.35878916,0.000324,4]
[391757638,1760784638977,-339.88265974,0.000324,4]
[391757640,1760784638989,-14019.01154246,0.000324,4]
[391757642,1760784639001,-393.69097478,0.000324,4]
[391757644,1760784639012,-363.50002513,0.000324,4]
[391757696,1760784639623,-604.92034864,0.000324,4]
[391757698,1760784639634,-1162.31644101,0.000324,4]
[391757700,1760784639645,-683.95731502,0.000324,4]
[391757702,1760784639656,-6667.61509461,0.000324,4]
[391757704,1760784639677,-4532.67417889,0.000324,4]
[391757707,1760784639689,-64865.76396143,0.000324,4]
[391757709,1760784639700,-35755.8687072,0.000324,4]
[391757712,1760784639730,-2263.65851147,0.000324,4]
[391757723,1760784639837,-41042.22773265,0.000324,4]
[391757725,1760784639846,-4267.93,0.000324,2]
[391757727,1760784639855,-263.8130716,0.000324,2]
[391757728,1760784639864,-160666.11034931,0.000324,4]
[391757730,1760784639876,-106005.66272337,0.000324,4]
[391757732,1760784639888,-4672.40176,0.000324,4]
[391757734,1760784639899,-649.99208241,0.000324,4]
[391757736,1760784639911,-536.4955791,0.000324,4]
[391757739,1760784639931,-33828.0,0.000324,4]
[391757742,1760784639946,-2999.71857136,0.000324,4]
[391757744,1760784639956,-623862.74529021,0.000324,4]
[391758004,1760784642697,-346.4546635,0.00032399,2]
[391758016,1760784642803,-35.86544809,0.00032399,2]
[391758018,1760784642812,-465.5086529,0.00032399,2]
[391758020,1760784642821,-500.0,0.00032399,2]
[391758022,1760784642831,-290.07988913,0.00032399,2]
[391758314,1760784645783,-209.92011087,0.00032399,2]
[391758316,1760784645792,-122.47988913,0.00032399,2]
[391758318,1760784645803,-76.18924051,0.00032399,2]
[391758320,1760784645813,-383.43075949,0.00032399,2]
[391758323,1760784645835,-167.24590525,0.00032399,2]
[391758325,1760784645844,-500.0,0.00032399,2]
[391758327,1760784645853,-1508.24209476,0.000324,4]
[391758329,1760784645864,-11796.63230808,0.000324,4]
[391758349,1760784646049,-11300.08706208,0.000324,4]
[391762964,1760784967832,13179.568841,7.945e-05,2]
[391763083,1760785028349,13501.507042,7.945e-05,2]
[391763951,1760785495832,170.0,8.9e-07,2]
[391764120,1760785831769,-394.93,0.00015587,2]
[391764121,1760785831977,-962.46,0.00015587,2]
[391764122,1760785831992,-1357.39,0.00016408,2]
[391764123,1760785832003,-250.0,0.00017,2]
[391764124,1760785832014,-1357.39,0.00017228,2]
[391764125,1760785832024,-1357.39,0.00018048,2]
[391764126,1760785832036,-1357.39,0.00018869,2]
[391764127,1760785832046,-1200.0,0.00019688,2]
[391764128,1760785832056,-1357.39,0.00019689,2]
[391764129,1760785832067,-500.0,0.00019973,2]
[391764130,1760785832077,-500.0,0.00019973,2]
[391764131,1760785832087,-500.0,0.00019973,2]
[391764132,1760785832097,-307.41617309,0.00019973,2]
[391764133,1760785832110,-500.0,0.00019973,2]
[391764134,1760785832120,-500.0,0.00019973,2]
[391764135,1760785832130,-500.0,0.00019973,2]
[391764136,1760785832139,-501.17212125,0.00019973,2]
[391764137,1760785832149,-5665.20886417,0.00019995,2]
[391764139,1760785832162,-817.01161418,0.00019995,2]
[391764144,1760785832201,-555.555,0.00019995,2]
[391764146,1760785832214,-18658.78305718,0.00019995,2]
[391764148,1760785832226,-5587.72116389,0.00019995,2]
[391764220,1760785837750,-2217.215,0.00019995,2]
[391764222,1760785837800,-2739.27613519,0.00019995,2]
[391764223,1760785837838,-254.8659778,0.00019995,2]
[391764389,1760785840038,-11449.67712741,0.00019995,2]
[391764390,1760785840050,-4029.1175882,0.00019995,2]
[391764391,1760785840106,-446.40295786,0.00019995,2]
[391764392,1760785840117,-669.37802845,0.00019995,2]
[391764393,1760785840129,-11847.90700874,0.00019995,2]
[391764394,1760785840139,-1357.39,0.0002051,2]
[391764395,1760785840148,-1004.58952718,0.00020521,2]
[391764396,1760785840158,-1000.0,0.00020521,2]
[391764397,1760785840167,-500.0,0.00020521,2]
[391764398,1760785840177,-1500.0,0.00021068,2]
[391764399,1760785840186,-1357.39,0.0002133,2]
[391764400,1760785840195,-306.0,0.00021548,2]
[391764401,1760785840204,-2000.0,0.00021616,2]
[391764402,1760785840214,-151.0,0.00022,7]
[391764403,1760785840224,-1357.39,0.0002215,2]
[391764404,1760785840234,-2000.0,0.00022164,2]
[391764405,1760785840243,-1323.22937991,0.00022862,3]
[391764406,1760785840257,-1357.39,0.00022971,2]
[391764407,1760785840266,-170.93,0.00022997,2]
[391764408,1760785840276,-151.0,0.00023,7]
[391764409,1760785840285,-1357.39,0.00023791,2]
[391764410,1760785840295,-300.0,0.00024,7]
[391764411,1760785840304,-1357.39,0.00024611,2]
[391764412,1760785840313,-151.0,0.00025,7]
[391764413,1760785840323,-1357.39,0.00025432,2]
[391764414,1760785840333,-1357.39,0.00026252,2]
[391764415,1760785840342,-1000.0,0.00027,120]
[391764416,1760785840351,-1357.39,0.00027073,2]
[391764417,1760785840361,-166.66,0.00027496,30]
[391764418,1760785840370,-1357.39,0.00027893,2]
[391764419,1760785840379,-1000.0,0.00028,120]
[391764420,1760785840389,-166.66,0.00028074,30]
[391764421,1760785840398,-166.36,0.00028634,2]
[391764422,1760785840407,-150.0,0.00028634,2]
[391764423,1760785840417,-166.66,0.00028653,30]
[391764424,1760785840427,-150.0,0.00028663,2]
[391764425,1760785840436,-1357.39,0.00028713,2]
[391764426,1760785840445,-166.66,0.00029232,30]
[391764427,1760785840455,-150.0,0.00029293,7]
[391764428,1760785840464,-500.0,0.0002937,2]
[391764429,1760785840474,-1357.39,0.00029534,2]
[391764430,1760785840483,-166.66,0.00029811,30]
[391764432,1760785840492,-902.0,0.0002996,2]
[391764433,1760785840501,-2546.0,0.0002996,2]
[391764434,1760785840510,-1183.0,0.0002996,2]
[391764435,1760785840519,-6437.0,0.0002996,2]
[391764436,1760785840529,-2590.0,0.0002996,2]
[391764437,1760785840538,-6490.535,0.0002996,2]
[391764438,1760785840547,-588.232,0.0002996,2]
[391764439,1760785840557,-1000.0,0.0003,120]
[391764440,1760785840566,-300.0,0.00030169,2]
[391764441,1760785840575,-1357.39,0.00030354,2]
[391764442,1760785840585,-166.66,0.0003039,30]
[391764443,1760785840594,-1357.39,0.00031175,2]
[391764444,1760785840604,-1323.2293799,0.0003128,5]
[391764445,1760785840613,-476.64,0.00031287,2]
[391764446,1760785840622,-200.0,0.00031298,2]
[391764447,1760785840640,-666.0,0.00031367,3]
[391764448,1760785840651,-250.0,0.0003138,2]
[391764449,1760785840660,-300.0,0.00031539,2]
[391764450,1760785840669,-794.102,0.00031999,31]
[391764451,1760785840679,-300.0,0.00032,120]
[391764452,1760785840688,-82382.78786881,0.00032,30]
[391764453,1760785840698,-5420.47635101,0.00032265,2]
[391764454,1760785840707,-151.0,0.00032271,2]
[391764455,1760785840717,-151.0,0.00032271,2]
[391764456,1760785840727,-151.0,0.00032271,2]
[391764457,1760785840736,-151.0,0.00032271,2]
[391764458,1760785840745,-151.0,0.00032271,2]
[391764459,1760785840755,-151.0,0.00032271,2]
[391764460,1760785840764,-151.0,0.00032271,2]
[391764461,1760785840773,-277.35679052,0.00032271,2]
[391764462,1760785841007,-151.0,0.00032271,2]
[391764463,1760785841017,-151.0,0.00032271,2]
[391764464,1760785841026,-151.0,0.00032271,2]
[391764465,1760785841036,-151.0,0.00032271,2]
[391764466,1760785841045,-151.0,0.00032271,2]
[391764467,1760785841055,-151.0,0.00032271,2]
[391764468,1760785841064,-151.0,0.00032271,2]
[391764469,1760785841075,-151.0,0.00032271,2]
[391764470,1760785841085,-151.0,0.00032271,2]
[391764471,1760785841094,-151.0,0.00032271,2]
[391764472,1760785841103,-282.28797508,0.00032271,2]
[391764473,1760785841113,-151.0,0.00032271,2]
[391764474,1760785841122,-151.0,0.00032271,2]
[391764475,1760785841132,-200.0,0.00032271,2]
[391764476,1760785841141,-151.0,0.00032271,2]
[391764477,1760785841151,-151.0,0.00032271,2]
[391764478,1760785841161,-151.0,0.00032271,2]
[391764479,1760785841170,-249.68946217,0.00032271,2]
[391764480,1760785841179,-151.0,0.00032271,2]
[391764481,1760785841188,-151.0,0.00032271,2]
[391764482,1760785841198,-241.62716865,0.00032271,2]
[391764483,1760785841207,-212.73907094,0.00032279,2]
[391764484,1760785841217,-5420.47635099,0.00032287,2]
[391764485,1760785841227,-913.09654763,0.0003229,2]
[391764486,1760785841237,-1000.0,0.0003229,2]
[391764487,1760785841247,-2365.8855,0.0003229,2]
[391764488,1760785841258,-188.90013856,0.000323,2]
[391764489,1760785841267,-731.21231091,0.000323,2]
[391764490,1760785841276,-160.63425148,0.000323,4]
[391764491,1760785841286,-1000.0,0.000323,2]
[391764492,1760785841297,-5000.0,0.000323,2]
[391764493,1760785841307,-211.67235406,0.000323,15]
[391764494,1760785841317,-913.09654757,0.00032309,2]
[391764495,1760785841330,-5420.47635099,0.00032309,2]
[391764496,1760785841339,-913.09654757,0.00032329,2]
[391764497,1760785841348,-5420.47635099,0.00032332,2]
[391764498,1760785841358,-913.09654757,0.00032348,2]
[391764499,1760785841368,-5420.47635099,0.00032354,2]
[391764500,1760785841379,-500.0,0.00032368,2]
[391764501,1760785841389,-913.09654757,0.00032368,2]
[391764502,1760785841398,-500.0,0.00032373,5]
[391764503,1760785841407,-161.31760883,0.00032373,5]
[391764504,1760785841416,-500.0,0.00032373,5]
[391764505,1760785841425,-500.0,0.00032373,5]
[391764506,1760785841435,-500.0,0.00032373,2]
[391764507,1760785841446,-159.983392,0.00032373,5]
[391764508,1760785841456,-500.0,0.00032373,5]
[391764509,1760785841466,-500.0,0.00032373,5]
[391764510,1760785841475,-500.0,0.00032373,5]
[391764511,1760785841486,-500.0,0.00032373,5]
[391764512,1760785841496,-500.0,0.00032373,5]
[391764513,1760785841505,-644.31273449,0.00032373,5]
[391764514,1760785841515,-500.3887811,0.00032373,5]
[391764515,1760785841524,-5420.47635099,0.00032376,2]
[391764516,1760785841534,-632.19044971,0.0003238,2]
[391764517,1760785841543,-913.09654757,0.00032387,2]
[391764518,1760785841553,-632.19044971,0.00032389,2]
[391764519,1760785841562,-500.0,0.00032389,2]
[391764520,1760785841572,-500.0,0.00032389,2]
[391764521,1760785841581,-500.0,0.00032389,2]
[391764522,1760785841590,-265.13724211,0.00032389,2]
[391764523,1760785841600,-215.32166249,0.00032389,2]
[391764524,1760785841609,-500.0,0.00032389,2]
[391764525,1760785841618,-768.86,0.00032389,2]
[391764526,1760785841627,-500.0,0.00032389,2]
[391764527,1760785841637,-500.0,0.00032389,2]
[391764528,1760785841647,-500.0,0.00032389,2]
[391764529,1760785841656,-500.0,0.00032389,2]
[391764530,1760785841665,-500.0,0.00032389,2]
[391764531,1760785841675,-500.0,0.00032389,2]
[391764532,1760785841685,-504.36314483,0.00032389,2]
[391764533,1760785841695,-616.43,0.00032389,2]
[391764534,1760785841704,-500.0,0.00032389,2]
[391764535,1760785841716,-500.0,0.00032389,2]
[391764536,1760785841727,-700.21,0.00032389,2]
[391764537,1760785841736,-500.0,0.00032389,2]
[391764538,1760785841746,-500.0,0.00032389,2]
[391764539,1760785841755,-500.0,0.00032389,2]
[391764540,1760785841765,-501.13348868,0.00032389,2]
[391764541,1760785841775,-500.0,0.00032389,2]
[391764542,1760785841785,-156.49824039,0.00032389,2]
[391764543,1760785841794,-500.0,0.00032389,2]
[391764544,1760785841803,-500.0,0.00032389,2]
[391764545,1760785841816,-500.0,0.00032389,2]
[391764546,1760785841827,-150.0,0.0003239,30]
[391764547,1760785841836,-151.0,0.0003239,30]
[391764548,1760785841847,-151.0,0.0003239,30]
[391764549,1760785841858,-151.0,0.0003239,30]
[391764550,1760785841868,-151.0,0.0003239,30]
[391764551,1760785841878,-151.0,0.0003239,30]
[391764552,1760785841887,-151.0,0.0003239,30]
[391764553,1760785841896,-151.0,0.0003239,30]
[391764554,1760785841905,-151.0,0.0003239,30]
[391764555,1760785841915,-151.0,0.0003239,30]
[391764556,1760785841924,-151.0,0.0003239,30]
[391764557,1760785841934,-151.0,0.0003239,30]
[391764558,1760785841943,-151.0,0.0003239,15]
[391764559,1760785841952,-151.0,0.0003239,15]
[391764560,1760785841962,-151.0,0.0003239,15]
[391764561,1760785841971,-151.0,0.0003239,30]
[391764562,1760785841980,-151.0,0.0003239,30]
[391764563,1760785841994,-200.839552,0.0003239,30]
[391764564,1760785842003,-166.058218,0.0003239,30]
[391764565,1760785842012,-151.0,0.0003239,30]
[391764566,1760785842021,-200.839552,0.0003239,30]
[391764567,1760785842031,-151.0,0.0003239,30]
[391764568,1760785842041,-200.839552,0.0003239,30]
[391764569,1760785842051,-200.839552,0.0003239,30]
[391764570,1760785842060,-151.0,0.0003239,30]
[391764571,1760785842072,-151.0,0.0003239,30]
[391764572,1760785842082,-151.0,0.0003239,30]
[391764573,1760785842091,-151.0,0.0003239,30]
[391764574,1760785842105,-151.0,0.0003239,30]
[391764575,1760785842117,-320.328164,0.0003239,30]
[391764576,1760785842127,-320.328164,0.0003239,30]
[391764577,1760785842137,-320.328164,0.0003239,30]
[391764578,1760785842147,-320.328164,0.0003239,30]
[391764579,1760785842157,-300.0,0.0003239,60]
[391764580,1760785842167,-300.0,0.0003239,60]
[391764581,1760785842179,-300.0,0.0003239,60]
[391764582,1760785842190,-300.0,0.0003239,60]
[391764583,1760785842201,-300.0,0.0003239,60]
[391764584,1760785842211,-300.0,0.0003239,60]
[391764585,1760785842221,-300.0,0.0003239,60]
[391764586,1760785842232,-300.0,0.0003239,60]
[391764587,1760785842243,-300.0,0.0003239,60]
[391764588,1760785842253,-307.1848,0.0003239,60]
[391764589,1760785842264,-8218.47584623,0.0003239,2]
[391764590,1760785842273,-150.0,0.0003239,30]
[391764591,1760785842283,-150.0,0.0003239,30]
[391764592,1760785842292,-150.0,0.0003239,30]
[391764593,1760785842302,-500.0,0.0003239,30]
[391764594,1760785842311,-150.0,0.0003239,2]
[391764595,1760785842320,-500.0,0.0003239,30]
[391764596,1760785842329,-500.0,0.0003239,30]
[391764597,1760785842339,-150.0,0.0003239,2]
[391764598,1760785842348,-150.0,0.0003239,30]
[391764599,1760785842359,-150.0,0.0003239,30]
[391764600,1760785842370,-150.0,0.0003239,30]
[391764601,1760785842380,-162.47428,0.0003239,2]
[391764602,1760785842389,-150.0,0.0003239,30]
[391764603,1760785842400,-150.0,0.0003239,30]
[391764604,1760785842409,-150.0,0.0003239,30]
[391764605,1760785842419,-150.0,0.0003239,30]
[391764606,1760785842429,-150.0,0.0003239,30]
[391764607,1760785842438,-500.0,0.00032398,2]
[391764608,1760785842447,-575.66406825,0.00032398,2]
[391764609,1760785842457,-500.0,0.00032398,2]
[391764610,1760785842467,-500.0,0.00032398,2]
[391764611,1760785842476,-500.0,0.00032398,2]
[391764612,1760785842485,-568.92496119,0.00032398,2]
[391764613,1760785842495,-538.87678158,0.00032398,2]
[391764614,1760785842505,-270.67842065,0.00032398,2]
[391764615,1760785842514,-576.72,0.00032398,2]
[391764616,1760785842524,-500.0,0.00032398,2]
[391764617,1760785842537,-500.0,0.00032398,2]
[391764618,1760785842547,-500.0,0.00032398,2]
[391764619,1760785842556,-500.0,0.00032398,2]
[391764620,1760785842566,-500.0,0.00032398,2]
[391764621,1760785842576,-500.0,0.00032398,2]
[391764622,1760785842585,-500.0,0.00032398,2]
[391764623,1760785842595,-504.14678259,0.00032398,2]
[391764624,1760785842604,-437.09376233,0.00032398,2]
[391764625,1760785842614,-500.0,0.00032398,2]
[391764626,1760785842623,-5420.47635099,0.00032398,2]
[391764628,1760785842633,-300.0,0.00032399,10]
[391764630,1760785842642,-666.0,0.00032399,10]
[391764632,1760785842651,-300.0,0.00032399,10]
[391764634,1760785842660,-300.0,0.00032399,10]
[391764636,1760785842673,-666.0,0.00032399,10]
[391764638,1760785842682,-300.0,0.00032399,10]
[391764640,1760785842691,-533.07876662,0.00032399,2]
[391764642,1760785842701,-152.84,0.00032399,3]
[391764644,1760785842711,-150.0,0.00032399,2]
[391764646,1760785842720,-531.65,0.00032399,2]
[391764648,1760785842730,-572.70503845,0.00032399,2]
[391764650,1760785842740,-500.0,0.00032399,2]
[391764652,1760785842749,-156.13454979,0.00032399,2]
[391764655,1760785842759,-500.0,0.00032399,2]
[391764656,1760785842768,-500.0,0.00032399,2]
[391764657,1760785842777,-500.0,0.00032399,2]
[391764658,1760785842786,-560.56714348,0.00032399,2]
[391764659,1760785842795,-553.80071941,0.00032399,2]
[391764661,1760785842804,-500.0,0.00032399,2]
[391764665,1760785842814,-500.0,0.00032399,2]
[391764669,1760785842824,-509.90307215,0.00032399,2]
[391764672,1760785842833,-500.0,0.00032399,2]
[391764674,1760785842843,-490.03540732,0.00032399,2]
[391764676,1760785842852,-347.91474456,0.00032399,2]
[391764678,1760785842861,-500.0,0.00032399,2]
[391764681,1760785842874,-500.0,0.00032399,2]
[391764683,1760785842884,-183.40377736,0.00032399,2]
[391764685,1760785842893,-500.0,0.00032399,2]
[391764686,1760785842902,-500.0,0.00032399,2]
[391764687,1760785842911,-500.0,0.00032399,2]
[391764688,1760785842921,-157.99974835,0.00032399,2]
[391764689,1760785842930,-500.0,0.00032399,2]
[391764690,1760785842939,-1024.41,0.00032399,2]
[391764691,1760785842949,-500.0,0.00032399,2]
[391764692,1760785842958,-506.14654838,0.00032399,2]
[391764693,1760785842967,-500.0,0.00032399,2]
[391764694,1760785842976,-500.0,0.00032399,2]
[391764695,1760785842986,-500.0,0.00032399,2]
[391764696,1760785842995,-500.0,0.00032399,2]
[391764697,1760785843004,-509.65641549,0.00032399,2]
[391764698,1760785843013,-500.0,0.00032399,2]
[391764699,1760785843023,-500.0,0.00032399,2]
[391764700,1760785843032,-184.38144094,0.00032399,2]
[391764701,1760785843041,-500.0,0.00032399,2]
[391764702,1760785843051,-500.0,0.00032399,2]
[391764703,1760785843060,-500.0,0.00032399,2]
[391764704,1760785843073,-566.39122691,0.00032399,2]
[391764705,1760785843083,-511.51154474,0.00032399,2]
[391764706,1760785843092,-500.0,0.00032399,2]
[391764707,1760785843100,-500.0,0.00032399,2]
[391764708,1760785843109,-500.0,0.00032399,2]
[391764709,1760785843117,-502.26398436,0.00032399,2]
[391764710,1760785843125,-500.0,0.00032399,2]
[391764711,1760785843134,-154.69617884,0.00032399,2]
[391764712,1760785843144,-500.0,0.00032399,2]
[391764713,1760785843153,-549.0589194,0.00032399,2]
[391764714,1760785843162,-501.08722132,0.00032399,2]
[391764715,1760785843171,-266.23788151,0.00032399,2]
[391764716,1760785843180,-543.42013984,0.00032399,2]
[391764717,1760785843189,-373.22007715,0.00032399,2]
[391764718,1760785843198,-500.0,0.00032399,2]
[391764719,1760785843207,-287.55813523,0.00032399,2]
[391764720,1760785843217,-512.34806894,0.00032399,2]
[391764721,1760785843226,-513.73829326,0.00032399,2]
[391764722,1760785843235,-500.0,0.00032399,2]
[391764723,1760785843244,-500.0,0.00032399,2]
[391764724,1760785843254,-307.97673983,0.00032399,2]
[391764725,1760785843263,-215.89874116,0.00032399,2]
[391764726,1760785843273,-500.0,0.00032399,2]
[391764727,1760785843283,-288.29054875,0.00032399,2]
[391764728,1760785843293,-504.72393453,0.00032399,2]
[391764729,1760785843302,-1422.58,0.00032399,2]
[391764730,1760785843311,-500.0,0.00032399,2]
[391764731,1760785843321,-500.0,0.00032399,2]
[391764732,1760785843330,-635.94932758,0.00032399,2]
[391764733,1760785843339,-410.88232496,0.00032399,2]
[391764734,1760785843350,-500.0,0.00032399,2]
[391764735,1760785843359,-500.0,0.00032399,2]
[391764736,1760785843370,-500.0,0.00032399,2]
[391764737,1760785843379,-1665.46,0.00032399,2]
[391764738,1760785843389,-283.64396917,0.00032399,2]
[391764739,1760785843400,-500.0,0.00032399,2]
[391764740,1760785843410,-2049.05,0.00032399,2]
[391764741,1760785843419,-500.0,0.00032399,2]
[391764742,1760785843430,-500.0,0.00032399,2]
[391764743,1760785843440,-500.0,0.00032399,2]
[391764744,1760785843455,-500.0,0.00032399,2]
[391764745,1760785843471,-269.47459,0.00032399,2]
[391764746,1760785843481,-500.0,0.00032399,2]
[391764747,1760785843492,-500.0,0.00032399,2]
[391764748,1760785843501,-2451.84,0.00032399,2]
[391764749,1760785843512,-204.16845423,0.00032399,2]
[391764750,1760785843522,-500.0,0.00032399,2]
[391764751,1760785843534,-500.0,0.00032399,2]
[391764752,1760785843543,-500.0,0.00032399,2]
[391764753,1760785843554,-500.0,0.00032399,2]
[391764754,1760785843564,-500.0,0.00032399,2]
[391764755,1760785843574,-500.0,0.00032399,2]
[391764756,1760785843584,-261.69940233,0.00032399,2]
[391764757,1760785843594,-156.79291638,0.00032399,2]
[391764758,1760785843604,-500.0,0.00032399,2]
[391764759,1760785843614,-500.0,0.00032399,2]
[391764760,1760785843624,-500.0,0.00032399,2]
[391764761,1760785843634,-206.72998753,0.00032399,2]
[391764762,1760785843643,-222.04956686,0.00032399,2]
[391764763,1760785843653,-387.82638734,0.00032399,2]
[391764764,1760785843663,-181.64258201,0.00032399,2]
[391764765,1760785843673,-410.91804095,0.00032399,2]
[391764766,1760785843683,-176.87860947,0.00032399,2]
[391764768,1760785843693,-1026.91,0.00032399,2]
[391764769,1760785843703,-267.62407812,0.00032399,2]
[391764770,1760785843714,-325.85605703,0.00032399,2]
[391764771,1760785843723,-500.0,0.00032399,2]
[391764772,1760785843733,-500.0,0.00032399,2]
[391764773,1760785843743,-189.06839075,0.00032399,2]
[391764774,1760785843754,-1402.0,0.000324,5]
[391764775,1760785843764,-624579.10566733,0.000324,4]
[391764776,1760785843774,-242.52,0.000324,2]
[391764777,1760785843784,-300.57,0.000324,30]
[391764778,1760785843794,-96672.07531482,0.000324,4]
[391764779,1760785843804,-16595.6579401,0.000324,2]
[391764780,1760785843819,-4595.712493,0.000324,2]
[391764781,1760785843830,-200.0,0.000324,2]
[391764782,1760785843842,-150.0,0.000324,4]
[391764783,1760785843853,-150.0,0.000324,4]
[391764784,1760785843863,-208.64480734,0.000324,4]
[391764785,1760785843873,-150.0,0.000324,2]
[391764786,1760785843883,-590.62414403,0.000324,2]
[391764787,1760785843895,-150.0,0.000324,2]
[391764788,1760785843907,-1632.17344362,0.000324,2]
[391764789,1760785843917,-2000.0,0.000324,2]
[391764790,1760785843926,-262.92408763,0.000324,2]
[391764791,1760785843936,-200.0,0.000324,2]
[391764792,1760785843945,-151.0,0.000324,30]
[391764793,1760785843955,-151.0,0.000324,30]
[391764794,1760785843964,-151.0,0.000324,30]
[391764795,1760785843974,-151.0,0.000324,30]
[391764796,1760785843984,-151.0,0.000324,30]
[391764797,1760785843998,-151.0,0.000324,30]
[391764798,1760785844007,-151.0,0.000324,30]
[391764799,1760785844022,-151.0,0.000324,30]
[391764800,1760785844033,-151.0,0.000324,30]
[391764801,1760785844042,-151.0,0.000324,15]
[391764802,1760785844052,-151.0,0.000324,15]
[391764803,1760785844062,-151.0,0.000324,15]
[391764804,1760785844075,-151.0,0.000324,30]
[391764805,1760785844085,-151.0,0.000324,30]
[391764806,1760785844094,-200.839552,0.000324,30]
[391764807,1760785844104,-200.839552,0.000324,30]
[391764808,1760785844113,-200.839552,0.000324,30]
[391764809,1760785844122,-200.839552,0.000324,30]
[391764810,1760785844132,-151.0,0.000324,30]
[391764811,1760785844142,-151.0,0.000324,30]
[391764812,1760785844151,-151.0,0.000324,30]
[391764813,1760785844161,-151.0,0.000324,30]
[391764814,1760785844170,-152.103103,0.000324,30]
[391764815,1760785844180,-320.328164,0.000324,30]
[391764816,1760785844189,-151.0,0.000324,30]
[391764817,1760785844199,-320.328164,0.000324,30]